[Event "FRA-ch Teams Top 16-A 2022"]
[Site "Chartres"]
[Date "2022.06.11"]
[Round "3.16"]
[White "Hernandez, Lara"]
[Black "Afraoui, Solenn"]
[Result "1-0"]
[ECO "A46"]
[WhiteElo "1965"]
[BlackElo "1945"]
[Annotator "TA"]
[PlyCount "131"]
[EventDate "2022.06.09"]
[EventType "team-tourn"]
[EventCountry "FRA"]
[SourceTitle "playchess.com"]
[Source "ChessBase"]
[SourceQuality "1"]
[TimeControl "40/5400+30:1800+30"]

{[%evp 10,131,0,5,15,12,16,18,16,12,16,6,9,9,15,-27,16,17,39,0,0,0,0,0,-3,9,40,-66,-62,-103,-75,-76,-56,-104,-104,-104,-22,-29,12,0,99,98,90,91,157,157,148,28,29,56,29,35,162,162,161,161,162,162,162,130,125,124,181,185,215,215,215,130,130,130,130,130,198,130,179,130,130,130,130,130,198,198,208,208,207,207,352,346,342,337,331,331,484,484,484,484,725,564,525,484,484,484,484,484,476,463,419,334,317,301,231,45,1091,1091,29953,29955,29952,29951,11914,10666,29972,29974,29974,29975]} 1. d4 {[%emt 0:00:47]} Nf6 {[%emt 0:00:09]} 2. Nf3 {[%emt 0:00:05]} e6 {[%emt 0:00:14]} 3. g3 {[%emt 0:00:10]} b5 {[%emt 0:00:09]} 4. Bg2 {[%emt 0:00:27]} Bb7 {[%emt 0:00:17]} 5. O-O {[%emt 0:00:32]} c5 {[%emt 0:00:30]} 6. Bg5 {[%emt 0:00:51][%cal Oe2e4]} Be7 {[%emt 0:00:45] A46: 1 d4 Nf6 2 Nf3 e6: Torre, London and Colle Systems.} 7. dxc5 {[%emt 0:01:07]} Bxc5 {[%emt 0:00:17]} 8. Qd3 {[%emt 0:03:18]} a6 {[%emt 0:02:48] The position is equal.} 9. Nbd2 {[%emt 0:01:50]} d5 {[%emt 0:02:41] Inhibits e4.} 10. a4 {[%emt 0:02:38]} b4 {[%emt 0:08:23] [#]} 11. e4 $146 {[%emt 0:06:25]} ({Predecessor:} 11. c4 bxc3 12. bxc3 h6 13. Bxf6 Qxf6 14. Rab1 Qe7 15. c4 O-O 16. Rfc1 dxc4 17. Qxc4 {½-½ (62) Munoz Portugal,G (2248)-Moreno,A (2259) ICCF email 2007}) 11... dxe4 {[%emt 0:15:12]} 12. Qxd8+ {[%emt 0:00:07]} Kxd8 {[%emt 0:00:04]} 13. Ne5 {[%emt 0:00:26][%csl LRe4,LRf7]} Ke8 {[%emt 0:07:23]} 14. Nb3 {[%emt 0:01:54]} Be7 {[%emt 0:14:45][%cal Bc5e7,Be7d8,Bd8c7][%mdl 32]} 15. Na5 {[%emt 0:05:59]} Bd5 {[%emt 0:04:13]} 16. c4 {[%emt 0:03:25]} bxc3 $1 {[%emt 0:00:12]} 17. bxc3 {[%emt 0:00:02] aiming for c4.} Bd8 {[%emt 0:06:01]} 18. Nec4 {[%emt 0:11:15]} ({Much worse is} 18. Nac4 Bc7 $11) (18. c4 $1 $14) 18... Nbd7 {[%emt 0:05:14]} 19. Rfb1 {[%emt 0:09:51]} Kf8 {[%emt 0:09:23]} 20. Be3 {[%emt 0:08:51]} Bc7 {[%emt 0:12:32]} 21. Bf1 {[%emt 0:15:12]} (21. Nb6 $1 $15 Bxb6 22. Bxb6 Nxb6 23. Rxb6) 21... h5 $17 {[%emt 0:06:07]} 22. Nb6 {[%emt 0:08:38]} Rb8 {[%emt 0:01:28]} (22... Bxb6 $17 23. Bxb6 Nxb6 24. Rxb6 e3 25. Rxa6 Rxa6 26. Bxa6 h4 27. gxh4 exf2+ 28. Kxf2 Rxh4) 23. Nac4 {[%emt 0:03:13]} Kg8 {[%emt 0:01:44]} 24. a5 {[%emt 0:01:50][%cal Ba4a5,Ba5b6][%mdl 32]} Kh7 {[%emt 0:00:59]} (24... Bxc4 $11 {keeps the balance.} 25. Nxc4 (25. Bxc4 Ne5 $11) 25... Nd5) 25. Nxd7 $1 $16 {[%emt 0:02:27][%mdl 64] Remove Defender} Nxd7 {[%emt 0:00:07]} 26. Nb6 {[%emt 0:00:04]} Nxb6 {[%emt 0:01:14]} (26... Bxb6 $142 27. axb6 Rhc8) 27. axb6 {[%emt 0:00:04]} Be5 {[%emt 0:00:22]} 28. Bxa6 {[%emt 0:03:55]} (28. Ra3 $1 $16) 28... Bxc3 $11 {[%emt 0:00:21]} 29. Ra3 {[%emt 0:00:27]} Be5 {[%emt 0:00:11]} 30. b7 {[%emt 0:00:27]} Bc6 {[%emt 0:00:51] Prevents Ra4.} (30... h4 $14) 31. Ba7 $1 $36 {[%emt 0:01:16][%mdl 2048] Keeping Black busy.} Rbd8 {[%emt 0:00:38]} 32. Rab3 {[%emt 0:00:33]} Bb8 {[%emt 0:00:25]} 33. Bxb8 {[%emt 0:02:07]} Rxb8 {[%emt 0:00:05]} 34. Rc1 {[%emt 0:00:56]} Bd5 {[%emt 0:00:48]} 35. Rb6 {[%emt 0:00:55] White is more active.} Kg6 {[%emt 0:00:42]} (35... g5 $16 36. Rc7 Kg6) 36. Rc8 {[%emt 0:01:23] Black must now prevent Rxh8.} Bxb7 {[%emt 0:00:43]} 37. Rxh8 {[%emt 0:00:45]} Rxh8 {[%emt 0:00:06]} 38. Rxb7 {[%emt 0:00:39][%mdl 4096] Endgame KRB-KR} h4 {[%emt 0:01:27]} 39. Kf1 {[%emt 0:05:09]} hxg3 {[%emt 0:00:00]} 40. hxg3 {[%emt 0:00:00]} Ra8 {[%emt 0:00:21]} (40... f5 $16 41. Rb6 Kf6) 41. Rb6 {[%emt 0:28:44]} (41. Bb5 $18) 41... Kf5 {[%emt 0:01:29]} (41... Kf6 $16 {is a better defense.} 42. Ke2 Ke5) 42. Ke2 {[%emt 0:00:00]} ({White should try} 42. Bc4 $18) 42... Ke5 $16 {[%emt 0:03:43]} 43. Bc4 {[%emt 0:00:00]} Kd4 {[%emt 0:06:32]} 44. Bb3 {[%emt 0:00:00]} Ra3 {[%emt 0:01:55]} (44... Ra7 $16 45. Kd2 Kc5) 45. Rb7 $18 {[%emt 0:00:00]} g5 {[%emt 0:04:30]} 46. Kd2 $1 {[%emt 0:00:00]} Ke5 {[%emt 0:10:48]} 47. Kc3 {[%emt 0:00:00]} f5 {[%emt 0:02:00]} (47... e3 $142 48. fxe3 Kf6) 48. Rb6 {[%emt 0:00:00][%csl Gb3][%cal Rb6e6]} f4 {[%emt 0:01:02]} 49. Rb5+ $1 {[%emt 0:00:00]} ({Weaker is} 49. Rxe6+ Kf5 50. g4+ Kxg4 $11) 49... Kf6 {[%emt 0:00:40] [#]} 50. g4 $1 {[%emt 0:00:00] Hoping for Rb6.} Ra6 {[%emt 0:01:48] Prevents Rb6.} (50... e3 $142 51. f3 Ra6) 51. Kd4 {[%emt 0:00:00]} e3 {[%emt 0:00:50]} 52. fxe3 {[%emt 0:00:00]} fxe3 {[%emt 0:00:45]} (52... Rc6 $142 53. exf4 gxf4) 53. Kxe3 {[%emt 0:00:00]} Rd6 {[%emt 0:00:17]} 54. Ke4 {[%emt 0:00:00]} Rc6 {[%emt 0:00:20]} 55. Ra5 {[%emt 0:00:00]} Rb6 {[%emt 0:00:37]} 56. Bc4 {[%emt 0:00:00] Ra6 would kill now.} Rb1 {[%emt 0:00:49]} 57. Ra6 {[%emt 0:02:20]} Re1+ {[%emt 0:00:15]} 58. Kd4 {[%emt 0:00:06]} Rd1+ {[%emt 0:00:10]} 59. Kc5 {[%emt 0:00:29]} Re1 {[%emt 0:00:11]} 60. Kd6 $2 {[%emt 0:00:53]} ({Better is} 60. Rd6 $18) 60... Rd1+ $2 {[%emt 0:00:06][%mdl 8192] [#]} (60... Re4 $14 61. Bb5 Rxg4) 61. Kc7 $1 {[%emt 0:00:08]} Re1 {[%emt 0:01:02]} 62. Kd7 {[%emt 0:00:56]} Rd1+ {[%emt 0:01:09]} 63. Rd6 {[%emt 0:00:12]} Rg1 {[%emt 0:00:35]} 64. Bxe6 {[%emt 0:00:34] Threatening mate with Rd5.} Ke5 {[%emt 0:00:13]} 65. Rd5+ {[%emt 0:01:25]} Kf4 {[%emt 0:00:10]} 66. Rf5+ {[%emt 0:00:10] Weighted Error Value: White=0.18 (very precise) /Black=0.51} 1-0

[Event "FRA-ch Teams Top 16-A 2022"]
[Site "Chartres"]
[Date "2022.06.11"]
[Round "3.17"]
[White "Bacrot, Etienne"]
[Black "Alonso Rosell, Alvar"]
[Result "1-0"]
[ECO "C67"]
[WhiteElo "2638"]
[BlackElo "2557"]
[Annotator "TA"]
[PlyCount "73"]
[EventDate "2022.06.09"]
[EventType "team-tourn"]
[EventCountry "FRA"]
[SourceTitle "playchess.com"]
[Source "ChessBase"]
[SourceQuality "1"]
[TimeControl "40/5400+30:1800+30"]

{[%evp 15,73,20,18,12,15,12,14,14,16,6,13,16,16,11,13,12,16,20,18,15,16,17,16,14,19,20,15,11,20,10,24,16,27,24,29,30,29,39,75,35,29,32,33,30,42,27,37,48,30,28,108,40,808,764,1149,1099,29981,68,29982,29983]} 1. e4 {[%emt 0:07:00]} e5 {[%emt 0:00:04]} 2. Nf3 {[%emt 0:00:11]} Nc6 {[%emt 0:00:02]} 3. Bb5 {[%emt 0:00:08]} Nf6 {[%emt 0:00:05]} 4. O-O {[%emt 0:00:06][%cal Bh1f1,Bf1e1,Be1e5][%mdl 32]} Nxe4 {[%emt 0:00:05]} 5. Re1 {[%emt 0:00:06]} Nd6 {[%emt 0:00:06][%cal Be4d6,Bd6e8,Be8c7][%mdl 32]} 6. Nxe5 {[%emt 0:00:44]} Be7 {[%emt 0:00:03]} 7. Bf1 {[%emt 0:00:10]} Nxe5 {[%emt 0:00:03]} 8. Rxe5 {[%emt 0:00:05]} O-O {[%emt 0:00:05]} 9. Nc3 {[%emt 0:01:27] C67: Ruy Lopez: Berlin Defence: 4 0-0 Nxe4.} Ne8 {[%emt 0:00:05]} 10. Nd5 {[%emt 0:00:24]} Bd6 {[%emt 0:00:02]} 11. Re1 {[%emt 0:00:15] The position is equal.} c6 {[%emt 0:00:06]} (11... Qh4 12. g3 Qd8 13. d4 $16) 12. Ne3 {[%emt 0:00:05]} Be7 {[%emt 0:00:25]} ({But not} 12... Qh4 13. g3 Qf6 14. d4 $14) 13. c4 {[%emt 0:03:46]} Nc7 {[%emt 0:00:21]} 14. d4 {[%emt 0:00:46]} d5 {[%emt 0:00:07]} 15. cxd5 {[%emt 0:00:05]} Bb4 {[%emt 0:00:03]} 16. Bd2 {[%emt 0:00:08]} Bxd2 {[%emt 0:00:03]} 17. Qxd2 {[%emt 0:00:07] White wants to play dxc6.} Nxd5 {[%emt 0:00:04]} 18. Nxd5 {[%emt 0:00:20]} Qxd5 {[%emt 0:00:02]} 19. Re5 $5 {[%emt 0:00:16][%mdl 4] Exploring less charted territory.} Qd6 {[%emt 0:00:02]} 20. Bc4 {[%emt 0:00:32]} Bd7 {[%emt 0:00:04]} 21. a3 {[%emt 0:11:32]} Rae8 {[%emt 0:21:17] [#]} 22. Qe3 $146 {[%emt 0:12:08]} ({Predecessor:} 22. Qc3 h6 23. h3 Rxe5 24. dxe5 Qe7 25. Rd1 Be6 26. Bxe6 Qxe6 27. Qe3 a5 28. Qc3 Re8 29. Qxa5 Qxe5 30. Qxe5 Rxe5 31. Rd8+ Kh7 32. Rd7 Rb5 33. b4 {½-½ (33) Galliano,G (2450)-Axmann,S (2455) ICCF email 2021}) 22... b6 {[%emt 0:00:13]} 23. h3 {[%emt 0:02:49]} (23. g3 {looks sharper.} c5 24. Rxe8 Rxe8 25. dxc5 bxc5 26. Qf3) 23... h6 {[%emt 0:20:04]} 24. Re1 {[%emt 0:05:37][%cal Ba1e1,Be1d1,Bd1d6,Bd6d7][%mdl 32]} Rxe5 {[%emt 0:00:34]} 25. dxe5 {[%emt 0:00:06]} Qe7 {[%emt 0:00:16]} 26. Rd1 {[%emt 0:00:22]} Re8 {[%emt 0:17:13]} 27. Qe4 {[%emt 0:05:53] 0x0.002ac306d09edp-1022s more active pieces.} c5 {[%emt 0:09:29]} 28. f4 {[%emt 0:07:51]} Be6 {[%emt 0:01:18]} 29. Rd6 {[%emt 0:04:32] Black must now prevent Bb5.} Bxc4 {[%emt 0:16:18]} 30. Qxc4 $11 {[%emt 0:00:20][%mdl 4096] Endgame KQR-KQR} Kf8 $1 {[%emt 0:00:13]} 31. Qd3 $40 {[%emt 0:04:52][%mdl 128] White has some attack.} Qh4 {[%emt 0:12:05]} 32. Qf5 {[%emt 0:01:46]} Qe1+ {[%emt 0:02:38]} 33. Kh2 {[%emt 0:00:59] White threatens Rd7 and mate.} Qe3 $2 {[%emt 0:01:06][%mdl 8192]} (33... Kg8 $14) 34. Rd7 $1 $18 {[%emt 0:05:53][%csl Gd7,LRa7,LRf7][%cal Rf5f7]} Re7 {[%emt 0:00:06]} 35. Rd3 {[%emt 0:01:18]} Qc1 {[%emt 0:01:46]} 36. Rd8+ {[%emt 0:00:59]} Re8 {[%emt 0:00:02] [#]} 37. e6 $1 {[%emt 0:01:07] Weighted Error Value: White=0.03 (flawless) /Black=0.35} 1-0

[Event "FRA-ch Teams Top 16-A 2022"]
[Site "Chartres"]
[Date "2022.06.11"]
[Round "3.18"]
[White "Song, Julien"]
[Black "Rodshtein, Maxim"]
[Result "0-1"]
[ECO "E08"]
[WhiteElo "2388"]
[BlackElo "2588"]
[Annotator "TA"]
[PlyCount "86"]
[EventDate "2022.06.09"]
[EventType "team-tourn"]
[EventCountry "FRA"]
[SourceTitle "playchess.com"]
[Source "ChessBase"]
[SourceQuality "1"]
[TimeControl "40/5400+30:1800+30"]

{[%evp 20,86,32,22,58,23,29,0,0,-10,-5,-25,-16,-46,-14,-24,-14,-37,-31,-29,-16,-17,-22,-26,-8,-25,-34,-43,-21,-38,-37,-38,-39,-47,-41,-50,-39,-45,-24,-35,0,-41,-35,-43,-43,-37,-9,-7,0,-93,-102,-221,-159,-159,-136,-379,-276,-232,-66,-805,-823,-868,-867,-804,-797,-2033,-1758,-29991,-29992]} 1. d4 {[%emt 0:00:03]} Nf6 {[%emt 0:01:37]} 2. c4 {[%emt 0:00:38]} e6 {[%emt 0:00:39]} 3. Nf3 {[%emt 0:01:01]} d5 {[%emt 0:00:36]} 4. g3 {[%emt 0:00:58]} Bb4+ {[%emt 0:00:46]} 5. Bd2 {[%emt 0:00:52]} Be7 {[%emt 0:02:12]} 6. Bg2 {[%emt 0:00:48]} c6 {[%emt 0:00:37]} 7. O-O {[%emt 0:03:20]} Nbd7 {[%emt 0:00:58]} 8. Qc2 {[%emt 0:00:44]} O-O {[%emt 0:02:07]} 9. Bf4 {[%emt 0:00:56]} Nh5 {[%emt 0:07:01]} 10. Bc1 {[%emt 0:03:22]} f5 {[%emt 0:00:19]} 11. b3 {[%emt 0:15:39]} a5 {[%emt 0:03:04][%cal Oa5a4] E08: Closed Catalan: Main Line: 7 Qc2.} 12. a4 {[%emt 0:05:38] [#]} Nhf6 $146 {[%emt 0:08:37]} ({Predecessor:} 12... Qe8 13. Ba3 Nhf6 14. Bxe7 Qxe7 15. e3 b6 16. Rc1 Bb7 17. cxd5 cxd5 18. Na3 Rac8 {1-0 (64) Kazakovskiy,V (2485)-Sjugirov,S (2665) Moscow 2019}) 13. Ng5 {[%emt 0:26:33][%cal Bf3g5,Bg5h3,Bh3f4][%mdl 32]} Nb8 {[%emt 0:00:19][%cal Bd7b8,Bb8a6,Ba6b4][%mdl 32] The position is equal.} 14. Nh3 {[%emt 0:01:56]} Na6 {[%emt 0:02:36]} 15. Nf4 {[%emt 0:04:37]} Nb4 {[%emt 0:07:03]} 16. Qd1 {[%emt 0:00:59]} b6 {[%emt 0:06:33]} 17. Bb2 {[%emt 0:02:42]} Bd6 {[%emt 0:07:17]} 18. e3 {[%emt 0:03:00]} Qe7 {[%emt 0:04:17]} 19. Nd3 {[%emt 0:04:32]} Ba6 {[%emt 0:03:32]} 20. Nxb4 {[%emt 0:00:31]} Bxb4 {[%emt 0:01:35]} 21. Qc2 {[%emt 0:00:26]} Rac8 {[%emt 0:01:18]} 22. Rc1 {[%emt 0:02:09]} Ne4 {[%emt 0:04:30]} 23. Nc3 {[%emt 0:03:41]} h5 {[%emt 0:07:46]} 24. Nxe4 {[%emt 0:05:08]} fxe4 {[%emt 0:27:11]} 25. Bc3 {[%emt 0:00:10]} Bd6 26. c5 {[%emt 0:13:07]} bxc5 {[%emt 0:00:00]} 27. dxc5 {[%emt 0:00:00]} Bc7 {[%emt 0:00:00]} 28. Qd2 $1 {[%emt 0:00:00]} Qd8 {[%emt 0:00:00]} (28... Qxc5 $2 29. Bxg7 $1 {[%mdl 512]} Qd6 30. Bxf8 Rxf8 31. Qc3 $18) 29. Bh3 {[%emt 0:00:00]} ({Don't play} 29. Qd4 e5 30. Qd2 Rb8 $17) 29... e5 {[%emt 0:00:00]} 30. b4 {[%emt 0:00:48]} axb4 {[%emt 0:00:00]} 31. Bxb4 {[%emt 0:00:01]} Rb8 {[%emt 0:00:00]} 32. Bc3 {[%emt 0:00:06]} Qe7 {[%emt 0:00:00]} 33. a5 {[%emt 0:00:53]} h4 {[%emt 0:01:32]} 34. Qd1 {[%emt 0:01:14]} (34. Bf1 $11 {keeps the balance.} Bc8 35. a6) 34... Rf3 $17 {[%emt 0:00:46] Strongly threatening ...Rbf8.} 35. Be1 {[%emt 0:00:21]} (35. Bf1 $17 Bxf1 36. Qxf1) 35... hxg3 {[%emt 0:00:39]} 36. hxg3 {[%emt 0:00:14]} Rbf8 {[%emt 0:01:43] And now ...Qf6 would win. Black is much more active.} 37. Ra2 $2 {[%emt 0:00:28]} (37. Rcb1 $17 {is the only way for White.}) 37... Qg5 $19 {[%emt 0:00:51] Threatens to win with ...Qh5.} 38. Bg2 {[%emt 0:00:27] [#]} d4 $2 {[%emt 0:00:48]} ({Black should try} 38... R3f6 $1 $19 {[%cal Rf6h6]} 39. Rb1 Qf5) 39. exd4 $2 {[%emt 0:01:16][%mdl 8192] [#]} ({Reject} 39. Bxf3 Rxf3 40. Kg2 Rf7 $11) (39. Rb1 $15) 39... exd4 $1 {[%emt 0:00:02]} 40. Bxf3 {[%emt 0:00:40]} (40. Qxd4 Qxc1) 40... exf3 {[%emt 0:01:04]} 41. Qb3+ {[%emt 0:15:48]} Rf7 {[%emt 0:07:37]} 42. Rd1 {[%emt 0:02:50]} Qf5 {[%emt 0:00:56] ( -> ...Qh3)} 43. Rxd4 {[%emt 0:11:12]} Qh3 {[%emt 0:01:36] Weighted Error Value: White=0.64/Black=0.17 (very precise)} 0-1

[Event "FRA-ch Teams Top 16-A 2022"]
[Site "Chartres"]
[Date "2022.06.11"]
[Round "3.19"]
[White "Ragger, Markus"]
[Black "Relange, Eloi"]
[Result "1/2-1/2"]
[ECO "C41"]
[WhiteElo "2636"]
[BlackElo "2456"]
[Annotator "TA"]
[PlyCount "48"]
[EventDate "2022.06.09"]
[EventType "team-tourn"]
[EventCountry "FRA"]
[SourceTitle "playchess.com"]
[Source "ChessBase"]
[SourceQuality "1"]
[TimeControl "40/5400+30:1800+30"]

{[%evp 14,48,40,46,33,35,24,36,37,42,31,31,59,62,62,62,54,52,42,58,55,42,70,73,76,66,78,89,95,64,85,37,52,0,0,-18,0]} 1. e4 {[%emt 0:00:07]} d6 {[%emt 0:00:35]} 2. d4 {[%emt 0:00:05]} Nf6 {[%emt 0:00:04]} 3. Nc3 {[%emt 0:00:06]} e5 {[%emt 0:00:04]} 4. Nf3 {[%emt 0:00:04]} Nbd7 {[%emt 0:00:07]} 5. Bc4 {[%emt 0:00:05]} Be7 {[%emt 0:00:07]} 6. a4 {[%emt 0:00:11]} O-O {[%emt 0:00:08]} 7. O-O {[%emt 0:00:05]} c6 {[%emt 0:00:10]} 8. h3 {[%emt 0:00:57]} Re8 {[%emt 0:02:47] Recently 8...h6 got a lot of attention. C41: Philidor Defence.} 9. Re1 {[%emt 0:05:39]} Qc7 {[%emt 0:03:36]} 10. a5 {[%emt 0:07:03] is the legacy move (10.Ba2).} exd4 {[%emt 0:01:00] White is slightly better.} 11. Nxd4 {[%emt 0:00:06]} Ne5 {[%emt 0:00:14]} 12. Bb3 {[%emt 0:00:25]} Bd7 {[%emt 0:01:05] [#]} 13. Bf4 $146 {[%emt 0:00:32]} ({Predecessor:} 13. f4 Ng6 14. Qd3 Bf8 15. Be3 b5 16. axb6 axb6 17. Qc4 Rxa1 18. Rxa1 Nh8 19. Kf2 {0-1 (47) Sadzikowski,D (2480)-Kunin,V (2571) Germany 2015}) 13... Rad8 {[%emt 0:05:41]} 14. Bh2 {[%emt 0:01:07] White is more active.} Bf8 {[%emt 0:03:29]} 15. f4 {[%emt 0:10:49]} Ng6 {[%emt 0:00:17]} 16. Kh1 {[%emt 0:00:48]} c5 {[%emt 0:18:08]} 17. Nf3 {[%emt 0:05:09]} c4 {[%emt 0:06:00]} 18. Ba4 {[%emt 0:07:56]} Bxa4 {[%emt 0:09:29]} 19. Rxa4 {[%emt 0:01:43]} b5 {[%emt 0:09:45]} 20. axb6 $1 {[%emt 0:07:48]} ({Reject} 20. Nxb5 Qd7 21. Nc3 {[#]} Nxe4 $1 22. Rxe4 Rxe4 $15) 20... Qxb6 {[%emt 0:00:04]} 21. Qa1 {[%emt 0:18:00]} ({Much less strong is} 21. Rxc4 Qxb2 22. Qd4 Qb6 $11) 21... d5 {[%emt 0:09:25][%cal Rf6e4]} 22. Ra6 {[%emt 0:06:56]} (22. e5 $16 {aiming for Ra6.} d4 23. Ne4 (23. exf6 dxc3 24. bxc3 Qxf6 $14) 23... Nxe4 24. Rxe4) 22... Qf2 $14 {[%emt 0:00:39][%cal Rf6e4]} 23. Rxf6 {[%emt 0:11:05]} gxf6 $11 {[%emt 0:01:12]} 24. Nxd5 {[%emt 0:05:28] Pair of Knights!} Bg7 {[%emt 0:00:16] Weighted Error Value: White=0.09 (flawless) /Black=0.05 (flawless)} 1/2-1/2

[Event "FRA-ch Teams Top 16-A 2022"]
[Site "Chartres"]
[Date "2022.06.11"]
[Round "3.20"]
[White "Solakian-Van Eyll, Jerome"]
[Black "Naiditsch, Arkadij"]
[Result "0-1"]
[ECO "D00"]
[WhiteElo "2248"]
[BlackElo "2654"]
[Annotator "TA"]
[PlyCount "72"]
[EventDate "2022.06.09"]
[EventType "team-tourn"]
[EventCountry "FRA"]
[SourceTitle "playchess.com"]
[Source "ChessBase"]
[SourceQuality "1"]
[TimeControl "40/5400+30:1800+30"]

{[%evp 9,72,13,18,11,27,10,11,-2,8,0,6,0,16,-11,0,0,16,7,0,10,28,6,12,-18,-10,-17,23,12,16,0,0,0,0,-21,5,7,6,0,16,0,0,8,8,8,100,54,283,0,0,0,0,-94,-49,-227,-187,-174,-166,-1516,-667,-737,-737,-737,-706,-29993,-29994]} 1. d4 {[%emt 0:00:03]} Nf6 {[%emt 0:01:05]} 2. Nf3 {[%emt 0:00:13]} g6 {[%emt 0:00:18]} 3. Nc3 {[%emt 0:00:49]} d5 {[%emt 0:00:25]} 4. Bf4 {[%emt 0:01:08]} c6 {[%emt 0:00:18]} 5. h3 {[%emt 0:02:12]} Nbd7 {[%emt 0:05:49]} 6. e3 {[%emt 0:02:50] D00: 1 d4 d5: Unusual lines.} Bg7 {[%emt 0:04:28]} 7. Be2 {[%emt 0:01:52]} b5 $5 {[%emt 0:02:05][%mdl 4] A promising side line.} 8. a3 {[%emt 0:06:36] The position is equal.} O-O {[%emt 0:00:33]} 9. O-O {[%emt 0:00:38] [#]} Bb7 $146 {[%emt 0:00:05]} ({Predecessor:} 9... a5 10. Bd3 Nb6 11. Re1 Re8 12. Ne5 Bb7 13. Qf3 b4 14. axb4 axb4 15. Rxa8 Qxa8 16. Ne2 {½-½ (62) Grandelius,N (2643)-Kantans,T (2454) Tallinn 2016}) 10. Re1 {[%emt 0:19:00]} Nb6 {[%emt 0:02:54]} 11. b3 {[%emt 0:29:34]} a6 {[%emt 0:10:06]} 12. Bf1 {[%emt 0:21:39]} Ne4 {[%emt 0:02:48]} 13. Nxe4 {[%emt 0:06:16]} dxe4 {[%emt 0:00:02]} 14. Nd2 {[%emt 0:00:18]} f5 {[%emt 0:00:32]} 15. c4 {[%emt 0:01:27] Against Nd5} Nd7 {[%emt 0:00:16]} (15... c5 16. dxc5 Bxa1 17. Qxa1 $16) 16. Qc2 {[%emt 0:02:27]} e5 {[%emt 0:02:54]} 17. dxe5 {[%emt 0:00:06]} g5 {[%emt 0:00:25]} (17... Nxe5 $5 {[%cal Re5d3]} 18. Rad1 Nd3 19. Bxd3 exd3 $15) 18. Bh2 {[%emt 0:00:21]} (18. cxb5 cxb5 19. Bh2 Nxe5 20. Bxe5 Bxe5 $17) 18... Nxe5 {[%emt 0:00:13]} 19. Bxe5 {[%emt 0:00:32]} Bxe5 {[%emt 0:00:03]} 20. Rad1 {[%emt 0:00:03][%cal Od2e4]} Qf6 {[%emt 0:01:17]} 21. b4 {[%emt 0:01:00]} Rf7 {[%emt 0:07:08]} 22. Nb3 {[%emt 0:00:53]} Raf8 {[%emt 0:00:09]} 23. cxb5 {[%emt 0:01:11]} axb5 {[%emt 0:01:22]} 24. a4 {[%emt 0:00:18]} g4 {[%emt 0:03:26]} (24... bxa4 25. Nc5 $16) 25. axb5 {[%emt 0:00:46]} gxh3 {[%emt 0:01:37]} 26. g3 {[%emt 0:00:27] [#] Hoping for Nc5.} Rg7 {[%emt 0:00:02]} (26... cxb5 $11 {keeps the balance.} 27. Bxb5 f4) 27. Kh1 {[%emt 0:00:41]} ({White should try} 27. Nc5 $16 {Threatens to win with Nd7.} Bc8 28. b6 (28. Bxh3 cxb5 29. Qe2 h5 $15)) 27... f4 $2 {[%emt 0:08:09]} (27... cxb5 $14 28. Nc5 Bc8) 28. Bc4+ $2 {[%emt 0:00:03]} (28. exf4 $18 cxb5 29. Re3 (29. fxe5 $2 e3+ 30. Kh2 Qf3 $19) (29. Bxb5 Bxf4 30. Bc4+ Kh8 $19)) 28... Kh8 $11 {[%emt 0:00:16]} 29. exf4 {[%emt 0:00:10]} Bxf4 {[%emt 0:08:59]} 30. Qxe4 {[%emt 0:00:27]} (30. gxf4 $11 cxb5 31. Bd5 Bxd5 32. Rxd5) 30... Bb8 $40 {[%emt 0:02:34][%mdl 128] Black mounts an attack.} 31. Nc5 $2 {[%emt 0:01:18]} (31. f4 $1 $15) 31... cxb5 $19 {[%emt 0:05:34]} ({Weaker is} 31... Qxf2 32. Rf1 Qg2+ 33. Qxg2 hxg2+ 34. Kxg2 Rxg3+ 35. Kh1 Rh3+ 36. Kg1 Rg3+ 37. Kh1 Rh3+ 38. Kg1 Rg3+ 39. Kh1 $11) 32. Nxb7 {[%emt 0:00:24] Strongly threatening Be6.} bxc4 {[%emt 0:00:07]} 33. Nc5 $2 {[%emt 0:00:32] [#]} (33. f4 Rxg3 34. Rd7) 33... Qxf2 {[%emt 0:05:50]} (33... Re7 $142 $3 {[%mdl 512]} 34. Qd5 (34. f4 Rxe4) 34... Rxe1+ 35. Rxe1 Qxf2) 34. Re2 {[%emt 0:00:29]} Qxg3 {[%emt 0:00:30][%cal Og7e7] ( -> ...Re7!)} 35. Ne6 {[%emt 0:00:29]} Rg4 {[%emt 0:01:32]} 36. Qb7 {[%emt 0:00:36]} Rfg8 {[%emt 0:01:13] Weighted Error Value: White=0.61/Black=0.39} 0-1